[Event "Early-Titled-Tuesday-Blitz-January-23-2024"]
[Site "Chess.com"]
[Date "2024.01.23"]
[Round "3"]
[White "GroovyKettle"]
[Black "AlexPapasimakopoulos"]
[Result "1/2-1/2"]
[WhiteElo "2973"]
[BlackElo "2716"]
[TimeControl "180+1"]
[EndTime "8:28:47 PST"]
[Termination "Game drawn by repetition"]

1. e4 {[%clk 0:03:00.9]} 1... e6 {[%clk 0:02:59.8]} 2. d4 {[%clk 0:03:00.5]}
2... d5 {[%clk 0:03:00.3]} 3. Nd2 {[%clk 0:03:01.2]} 3... Nf6 {[%clk 0:02:59.9]}
4. e5 {[%clk 0:03:00.1]} 4... Nfd7 {[%clk 0:03:00.6]} 5. Bd3 {[%clk 0:03:00.3]}
5... c5 {[%clk 0:03:01.3]} 6. c3 {[%clk 0:03:01]} 6... b5 {[%clk 0:03:01.9]} 7.
Ne2 {[%clk 0:02:59.8]} 7... b4 {[%clk 0:03:02.1]} 8. O-O {[%clk 0:02:59.2]} 8...
bxc3 {[%clk 0:03:02.7]} 9. bxc3 {[%clk 0:03:00]} 9... Be7 {[%clk 0:03:03.2]} 10.
Nf3 {[%clk 0:02:57.9]} 10... Ba6 {[%clk 0:03:01.6]} 11. Ng3 {[%clk 0:02:53.5]}
11... Qa5 {[%clk 0:02:59]} 12. Bxa6 {[%clk 0:02:52.6]} 12... Qxa6 {[%clk
0:02:59.9]} 13. h4 {[%clk 0:02:51.9]} 13... Nc6 {[%clk 0:02:58]} 14. Bg5 {[%clk
0:02:49.3]} 14... h6 {[%clk 0:02:56]} 15. Bxe7 {[%clk 0:02:47.8]} 15... Nxe7
{[%clk 0:02:56.9]} 16. Nh5 {[%clk 0:02:45]} 16... O-O {[%clk 0:02:55.8]} 17. Nh2
{[%clk 0:02:36.8]} 17... Rab8 {[%clk 0:02:42]} 18. Qg4 {[%clk 0:02:35.9]} 18...
Nf5 {[%clk 0:02:38.7]} 19. Nf6+ {[%clk 0:02:21.1]} 19... Nxf6 {[%clk 0:02:38.3]}
20. exf6 {[%clk 0:02:22]} 20... cxd4 {[%clk 0:02:32.9]} 21. cxd4 {[%clk
0:02:21.9]} 21... Rb4 {[%clk 0:02:22.5]} 22. Nf3 {[%clk 0:02:22]} 22... Qa4
{[%clk 0:02:21.4]} 23. Rfe1 {[%clk 0:02:07.1]} 23... Rc8 {[%clk 0:02:09.6]} 24.
Re5 {[%clk 0:01:54.7]} 24... g6 {[%clk 0:01:53.2]} 25. Rxe6 {[%clk 0:01:54.5]}
25... Nxd4 {[%clk 0:01:33.7]} 26. Nxd4 {[%clk 0:01:11.9]} 26... Rxd4 {[%clk
0:01:34.6]} 27. Re4 {[%clk 0:01:04.6]} 27... Rxe4 {[%clk 0:01:24.9]} 28. Qxc8+
{[%clk 0:01:04.5]} 28... Re8 {[%clk 0:01:21.2]} 29. Qc5 {[%clk 0:01:03.2]} 29...
Qxh4 {[%clk 0:01:16.8]} 30. Qxa7 {[%clk 0:00:58.1]} 30... Qxf6 {[%clk
0:01:15.7]} 31. Rd1 {[%clk 0:00:58.7]} 31... Rd8 {[%clk 0:01:13.1]} 32. a4
{[%clk 0:00:51.7]} 32... d4 {[%clk 0:01:13.2]} 33. a5 {[%clk 0:00:52.1]} 33...
d3 {[%clk 0:00:51.3]} 34. a6 {[%clk 0:00:50.6]} 34... Qe6 {[%clk 0:00:42.7]} 35.
Qc7 {[%clk 0:00:40.7]} 35... Qd7 {[%clk 0:00:35]} 36. Qa5 {[%clk 0:00:28.5]}
36... d2 {[%clk 0:00:26.2]} 37. a7 {[%clk 0:00:26.1]} 37... Ra8 {[%clk
0:00:26.7]} 38. Rxd2 {[%clk 0:00:25.6]} 38... Rxa7 {[%clk 0:00:27.3]} 39. Rxd7
{[%clk 0:00:16.4]} 39... Rxa5 {[%clk 0:00:27.1]} 40. g3 {[%clk 0:00:15.9]} 40...
Kg7 {[%clk 0:00:26.7]} 41. Kg2 {[%clk 0:00:16.5]} 41... Ra3 {[%clk 0:00:26]} 42.
Rc7 {[%clk 0:00:16.7]} 42... Ra6 {[%clk 0:00:26.1]} 43. Rb7 {[%clk 0:00:16.8]}
43... Re6 {[%clk 0:00:26.8]} 44. Rc7 {[%clk 0:00:17.2]} 44... Rb6 {[%clk
0:00:27.3]} 45. Ra7 {[%clk 0:00:17.3]} 45... h5 {[%clk 0:00:27.9]} 46. Rc7
{[%clk 0:00:17.5]} 46... Ra6 {[%clk 0:00:28.6]} 47. Rb7 {[%clk 0:00:17.8]} 47...
Kf6 {[%clk 0:00:29.2]} 48. Rc7 {[%clk 0:00:18.1]} 48... Rb6 {[%clk 0:00:29.8]}
49. Ra7 {[%clk 0:00:18.4]} 49... g5 {[%clk 0:00:30.2]} 50. Rc7 {[%clk
0:00:18.7]} 50... Kg6 {[%clk 0:00:30.6]} 51. Ra7 {[%clk 0:00:18.8]} 51... Rc6
{[%clk 0:00:31.3]} 52. Rb7 {[%clk 0:00:19]} 52... f6 {[%clk 0:00:31.9]} 53. Ra7
{[%clk 0:00:19.3]} 53... Rb6 {[%clk 0:00:32.6]} 54. Rc7 {[%clk 0:00:19.5]} 54...
Rb5 {[%clk 0:00:33.1]} 55. Rc6 {[%clk 0:00:19.5]} 55... Kf5 {[%clk 0:00:33.5]}
56. Rc8 {[%clk 0:00:19.3]} 56... Ra5 {[%clk 0:00:33.9]} 57. Rh8 {[%clk
0:00:19.1]} 57... Kg6 {[%clk 0:00:33.8]} 58. Rg8+ {[%clk 0:00:19.4]} 58... Kh6
{[%clk 0:00:34.2]} 59. Rh8+ {[%clk 0:00:19.4]} 59... Kg6 {[%clk 0:00:34.3]} 60.
Rg8+ {[%clk 0:00:20.1]} 60... Kh7 {[%clk 0:00:34.4]} 61. Rc8 {[%clk 0:00:20.2]}
61... Ra6 {[%clk 0:00:34.5]} 62. Rc7+ {[%clk 0:00:20]} 62... Kg6 {[%clk
0:00:34.8]} 63. Rc8 {[%clk 0:00:20.9]} 63... Ra7 {[%clk 0:00:34.1]} 64. Rh8
{[%clk 0:00:20]} 64... Rh7 {[%clk 0:00:34.1]} 65. Rg8+ {[%clk 0:00:20.3]} 65...
Kf5 {[%clk 0:00:34.6]} 66. Ra8 {[%clk 0:00:19.3]} 66... h4 {[%clk 0:00:35.1]}
67. gxh4 {[%clk 0:00:19.4]} 67... Rxh4 {[%clk 0:00:33]} 68. Ra5+ {[%clk
0:00:19.5]} 68... Kg6 {[%clk 0:00:33.6]} 69. Ra6 {[%clk 0:00:20.1]} 69... Rb4
{[%clk 0:00:33.8]} 70. Kg3 {[%clk 0:00:20]} 70... Rb3+ {[%clk 0:00:34.1]} 71. f3
{[%clk 0:00:18.3]} 71... Rb4 {[%clk 0:00:32.4]} 72. Rc6 {[%clk 0:00:18.5]} 72...
Rf4 {[%clk 0:00:32.5]} 73. Rb6 {[%clk 0:00:18.8]} 73... Kh5 {[%clk 0:00:32.8]}
74. Ra6 {[%clk 0:00:18.8]} 74... Kg6 {[%clk 0:00:29]} 75. Rb6 {[%clk 0:00:19]}
75... Ra4 {[%clk 0:00:29.1]} 76. Rc6 {[%clk 0:00:19.2]} 76... Ra1 {[%clk
0:00:27.4]} 77. Rb6 {[%clk 0:00:19.1]} 77... Rg1+ {[%clk 0:00:26.2]} 78. Kf2
{[%clk 0:00:19.4]} 78... Rh1 {[%clk 0:00:26.6]} 79. Kg3 {[%clk 0:00:19.7]} 79...
Rh4 {[%clk 0:00:27.2]} 80. Ra6 {[%clk 0:00:19.6]} 80... Rf4 {[%clk 0:00:25.7]}
81. Rb6 {[%clk 0:00:19.8]} 1/2-1/2

[Event "Early-Titled-Tuesday-Blitz-January-23-2024"]
[Site "Chess.com"]
[Date "2024.01.23"]
[Round "3"]
[White "HATilay"]
[Black "HeroWilczek"]
[Result "0-1"]
[WhiteElo "2582"]
[BlackElo "2441"]
[TimeControl "180+1"]
[EndTime "8:28:48 PST"]
[Termination "HeroWilczek won by checkmate"]

1. d4 {[%clk 0:03:00.9]} 1... Nf6 {[%clk 0:02:59.8]} 2. c4 {[%clk 0:03:01.6]}
2... c5 {[%clk 0:03:00.3]} 3. d5 {[%clk 0:03:01]} 3... b5 {[%clk 0:03:00.9]} 4.
cxb5 {[%clk 0:03:01.9]} 4... a6 {[%clk 0:03:01.4]} 5. bxa6 {[%clk 0:03:02.8]}
5... Bxa6 {[%clk 0:03:01.9]} 6. Nc3 {[%clk 0:03:03.3]} 6... g6 {[%clk
0:03:01.2]} 7. e4 {[%clk 0:03:03.8]} 7... Bxf1 {[%clk 0:03:01.3]} 8. Kxf1 {[%clk
0:03:04.7]} 8... Bg7 {[%clk 0:03:01.4]} 9. e5 {[%clk 0:02:55.2]} 9... Ng8 {[%clk
0:03:01.2]} 10. Nf3 {[%clk 0:02:55.5]} 10... d6 {[%clk 0:03:00.9]} 11. Bf4
{[%clk 0:02:56.1]} 11... dxe5 {[%clk 0:02:49.6]} 12. Bxe5 {[%clk 0:02:56.2]}
12... Nf6 {[%clk 0:02:49]} 13. d6 {[%clk 0:02:47.3]} 13... e6 {[%clk 0:02:19.3]}
14. g4 {[%clk 0:02:35.6]} 14... Nbd7 {[%clk 0:02:14.4]} 15. Nb5 {[%clk
0:02:26.3]} 15... O-O {[%clk 0:02:09.2]} 16. Bc3 {[%clk 0:02:23.7]} 16... Qb6
{[%clk 0:02:05.7]} 17. Nc7 {[%clk 0:02:17.8]} 17... Rad8 {[%clk 0:01:57.4]} 18.
a4 {[%clk 0:01:08.9]} 18... Ne4 {[%clk 0:01:51.2]} 19. Bxg7 {[%clk 0:01:08.7]}
19... Kxg7 {[%clk 0:01:50]} 20. Nb5 {[%clk 0:01:09.3]} 20... Ndf6 {[%clk
0:01:40.2]} 21. g5 {[%clk 0:00:53.9]} 21... Nd5 {[%clk 0:01:37.7]} 22. d7 {[%clk
0:00:30.6]} 22... Rxd7 {[%clk 0:01:31.4]} 23. Qe2 {[%clk 0:00:31.3]} 23... Nd6
{[%clk 0:01:18.8]} 24. Ne5 {[%clk 0:00:31.4]} 24... Rdd8 {[%clk 0:01:09.5]} 25.
Nxd6 {[%clk 0:00:20.3]} 25... Qxd6 {[%clk 0:01:05.7]} 26. h4 {[%clk 0:00:20.7]}
26... Nf4 {[%clk 0:00:57.7]} 27. Qe4 {[%clk 0:00:21.1]} 27... Qd5 {[%clk
0:00:42.7]} 28. f3 {[%clk 0:00:04.9]} 28... Qxe4 {[%clk 0:00:40.9]} 29. fxe4
{[%clk 0:00:05.1]} 29... Rd2 {[%clk 0:00:40.8]} 30. Ke1 {[%clk 0:00:03.6]} 30...
Rfd8 {[%clk 0:00:36.8]} 31. a5 {[%clk 0:00:03.4]} 31... Ng2+ {[%clk 0:00:31.1]}
32. Kf1 {[%clk 0:00:03.5]} 32... Ne3+ {[%clk 0:00:31.7]} 33. Ke1 {[%clk
0:00:03.9]} 33... Nc2+ {[%clk 0:00:32.2]} 34. Kf1 {[%clk 0:00:04.4]} 34... Nxa1
{[%clk 0:00:32.5]} 35. Rh3 {[%clk 0:00:04.4]} 35... Rd1+ {[%clk 0:00:30.5]} 36.
Ke2 {[%clk 0:00:04.9]} 36... R1d2+ {[%clk 0:00:29.9]} 37. Ke1 {[%clk 0:00:04.8]}
37... Rxb2 {[%clk 0:00:24.6]} 38. Rf3 {[%clk 0:00:04.6]} 38... Nc2+ {[%clk
0:00:15.6]} 39. Kf1 {[%clk 0:00:04.5]} 39... Nd4 {[%clk 0:00:16.3]} 40. Rxf7+
{[%clk 0:00:04.9]} 40... Kg8 {[%clk 0:00:16.5]} 41. Rc7 {[%clk 0:00:04.7]} 41...
Nb5 {[%clk 0:00:12.8]} 42. Rd7 {[%clk 0:00:02.4]} 42... Rxd7 {[%clk 0:00:13]}
43. Nxd7 {[%clk 0:00:03.3]} 43... Ra2 {[%clk 0:00:11.3]} 44. Nxc5 {[%clk
0:00:03.5]} 44... Rxa5 {[%clk 0:00:10.7]} 45. Nxe6 {[%clk 0:00:04.2]} 45... Nd6
{[%clk 0:00:09.4]} 46. Nf4 {[%clk 0:00:02.5]} 46... Nxe4 {[%clk 0:00:09.2]} 47.
Ke2 {[%clk 0:00:03]} 47... Ra3 {[%clk 0:00:08.5]} 48. Nd5 {[%clk 0:00:02.7]}
48... Ng3+ {[%clk 0:00:07.9]} 49. Kf2 {[%clk 0:00:02.7]} 49... Nf5 {[%clk
0:00:08.2]} 50. Nf6+ {[%clk 0:00:03.6]} 50... Kh8 {[%clk 0:00:08]} 51. h5 {[%clk
0:00:04.5]} 51... Ra6 {[%clk 0:00:05.9]} 52. h6 {[%clk 0:00:04.5]} 52... Rxf6
{[%clk 0:00:05.5]} 53. gxf6 {[%clk 0:00:05.4]} 53... Kg8 {[%clk 0:00:06.4]} 54.
Kf3 {[%clk 0:00:06.3]} 54... Kf7 {[%clk 0:00:07.3]} 55. Kf4 {[%clk 0:00:07.1]}
55... Kxf6 {[%clk 0:00:08.1]} 56. Kg4 {[%clk 0:00:07.6]} 56... g5 {[%clk
0:00:08.7]} 57. Kh5 {[%clk 0:00:08]} 57... Nd6 {[%clk 0:00:08.9]} 58. Kg4 {[%clk
0:00:08.5]} 58... Kg6 {[%clk 0:00:09.8]} 59. Kf3 {[%clk 0:00:08.9]} 59... Kxh6
{[%clk 0:00:10.7]} 60. Kg4 {[%clk 0:00:09.5]} 60... Kg6 {[%clk 0:00:11.6]} 61.
Kg3 {[%clk 0:00:10.1]} 61... h5 {[%clk 0:00:12.5]} 62. Kf3 {[%clk 0:00:10.6]}
62... Nf7 {[%clk 0:00:13.4]} 63. Kg3 {[%clk 0:00:11.5]} 63... Kf6 {[%clk
0:00:14.2]} 64. Kf3 {[%clk 0:00:12.3]} 64... Kf5 {[%clk 0:00:15]} 65. Ke3 {[%clk
0:00:13.2]} 65... h4 {[%clk 0:00:15.7]} 66. Kd4 {[%clk 0:00:14.1]} 66... g4
{[%clk 0:00:16.3]} 67. Ke3 {[%clk 0:00:15]} 67... h3 {[%clk 0:00:17.2]} 68. Kf2
{[%clk 0:00:15.4]} 68... Kf4 {[%clk 0:00:18.1]} 69. Kg1 {[%clk 0:00:15.6]} 69...
g3 {[%clk 0:00:18.4]} 70. Kh1 {[%clk 0:00:16]} 70... Kf3 {[%clk 0:00:18]} 71.
Kg1 {[%clk 0:00:16.4]} 71... g2 {[%clk 0:00:18.2]} 72. Kh2 {[%clk 0:00:17.3]}
72... Kf2 {[%clk 0:00:18.9]} 73. Kxh3 {[%clk 0:00:17.9]} 73... g1=Q {[%clk
0:00:18.1]} 74. Kh4 {[%clk 0:00:18.8]} 74... Qg6 {[%clk 0:00:18.4]} 75. Kh3
{[%clk 0:00:19.7]} 75... Qh5# {[%clk 0:00:18.8]} 0-1

[Event "Early-Titled-Tuesday-Blitz-January-23-2024"]
[Site "Chess.com"]
[Date "2024.01.23"]
[Round "3"]
[White "MKlose11"]
[Black "ljuks68"]
[Result "1/2-1/2"]
[WhiteElo "2637"]
[BlackElo "2473"]
[TimeControl "180+1"]
[EndTime "8:28:49 PST"]
[Termination "Game drawn - insufficient material"]

1. e4 {[%clk 0:02:53.2]} 1... e6 {[%clk 0:02:59.5]} 2. d4 {[%clk 0:02:44]} 2...
d5 {[%clk 0:02:59.7]} 3. Nc3 {[%clk 0:02:44.9]} 3... Bb4 {[%clk 0:02:59]} 4. Bd2
{[%clk 0:02:31.4]} 4... dxe4 {[%clk 0:02:57.9]} 5. Qg4 {[%clk 0:02:28.1]} 5...
Qxd4 {[%clk 0:02:54.4]} 6. O-O-O {[%clk 0:02:27.5]} 6... Nf6 {[%clk 0:02:54.5]}
7. Qxg7 {[%clk 0:02:26.8]} 7... Rg8 {[%clk 0:02:54.8]} 8. Qh6 {[%clk 0:02:26.9]}
8... Rg6 {[%clk 0:02:55]} 9. Qh4 {[%clk 0:02:27.1]} 9... Rg4 {[%clk 0:02:54.8]}
10. Qh3 {[%clk 0:02:27.2]} 10... Qxf2 {[%clk 0:02:53.4]} 11. Nge2 {[%clk
0:02:20]} 11... Rh4 {[%clk 0:02:26.8]} 12. Be3 {[%clk 0:02:00.3]} 12... Rxh3
{[%clk 0:02:15]} 13. Bxf2 {[%clk 0:01:58.1]} 13... Rh6 {[%clk 0:02:15.5]} 14. a3
{[%clk 0:01:45.8]} 14... Ba5 {[%clk 0:02:08.2]} 15. Bd4 {[%clk 0:01:41.2]} 15...
Nc6 {[%clk 0:02:05.8]} 16. Bxf6 {[%clk 0:01:40.1]} 16... Rxf6 {[%clk 0:02:05.3]}
17. Nxe4 {[%clk 0:01:41]} 17... Rh6 {[%clk 0:01:43.3]} 18. N2g3 {[%clk
0:01:24.6]} 18... Bb6 {[%clk 0:01:36.7]} 19. Bb5 {[%clk 0:01:17.2]} 19... f5
{[%clk 0:01:27.9]} 20. Bxc6+ {[%clk 0:01:03.8]} 20... bxc6 {[%clk 0:01:27.5]}
21. Nd2 {[%clk 0:01:04.7]} 21... e5 {[%clk 0:00:55.8]} 22. Nc4 {[%clk
0:00:50.3]} 22... e4 {[%clk 0:00:55.4]} 23. Rhf1 {[%clk 0:00:49.5]} 23... Rxh2
{[%clk 0:00:41.8]} 24. Nxf5 {[%clk 0:00:46.2]} 24... Bxf5 {[%clk 0:00:40.5]} 25.
Rxf5 {[%clk 0:00:47.1]} 25... Rxg2 {[%clk 0:00:24.7]} 26. Re5+ {[%clk
0:00:44.4]} 26... Kf7 {[%clk 0:00:24]} 27. Rxe4 {[%clk 0:00:44]} 27... Kg6
{[%clk 0:00:12]} 28. Re6+ {[%clk 0:00:37.1]} 28... Kf7 {[%clk 0:00:09.9]} 29.
Rxc6 {[%clk 0:00:36.9]} 29... Re8 {[%clk 0:00:06.3]} 30. Rf1+ {[%clk 0:00:30.7]}
30... Kg8 {[%clk 0:00:03.6]} 31. Nxb6 {[%clk 0:00:27.5]} 31... cxb6 {[%clk
0:00:03.7]} 32. Rc7 {[%clk 0:00:27.8]} 32... Rg7 {[%clk 0:00:04.2]} 33. Rc6
{[%clk 0:00:25.2]} 33... Rf7 {[%clk 0:00:02.6]} 34. Rg1+ {[%clk 0:00:21.8]}
34... Kh8 {[%clk 0:00:03]} 35. Rh1 {[%clk 0:00:22.5]} 35... Rg8 {[%clk 0:00:02]}
36. b4 {[%clk 0:00:20.6]} 36... Rg2 {[%clk 0:00:02]} 37. Kb2 {[%clk 0:00:20.8]}
37... Kg7 {[%clk 0:00:01.3]} 38. Kb3 {[%clk 0:00:20.3]} 38... Rg3+ {[%clk
0:00:01.2]} 39. c3 {[%clk 0:00:20.7]} 39... Rg4 {[%clk 0:00:01.5]} 40. a4 {[%clk
0:00:21]} 40... Rg3 {[%clk 0:00:01.7]} 41. Rch6 {[%clk 0:00:19.2]} 41... Kg8
{[%clk 0:00:01.1]} 42. Rc6 {[%clk 0:00:18]} 42... Rg4 {[%clk 0:00:01.5]} 43. Re1
{[%clk 0:00:16.7]} 43... Rg3 {[%clk 0:00:01.7]} 44. Re8+ {[%clk 0:00:16.7]}
44... Kg7 {[%clk 0:00:02.6]} 45. Rec8 {[%clk 0:00:16.3]} 45... h5 {[%clk
0:00:02.5]} 46. Re8 {[%clk 0:00:13.6]} 46... h4 {[%clk 0:00:02.6]} 47. Re4
{[%clk 0:00:14.2]} 47... h3 {[%clk 0:00:02.9]} 48. Rh4 {[%clk 0:00:14.9]} 48...
Rff3 {[%clk 0:00:03.3]} 49. a5 {[%clk 0:00:13]} 49... Kf7 {[%clk 0:00:03.3]} 50.
axb6 {[%clk 0:00:11.6]} 50... axb6 {[%clk 0:00:03.9]} 51. b5 {[%clk 0:00:07.7]}
51... Re3 {[%clk 0:00:03.4]} 52. Kb4 {[%clk 0:00:08]} 52... Rd3 {[%clk
0:00:03.7]} 53. Rcc4 {[%clk 0:00:08.2]} 53... Rdf3 {[%clk 0:00:03.9]} 54. Rcf4+
{[%clk 0:00:08.4]} 54... Rxf4+ {[%clk 0:00:03.8]} 55. Rxf4+ {[%clk 0:00:09.3]}
55... Kg6 {[%clk 0:00:04.2]} 56. c4 {[%clk 0:00:09.1]} 56... Kg5 {[%clk
0:00:04]} 57. Rf1 {[%clk 0:00:09.2]} 57... h2 {[%clk 0:00:03.9]} 58. Rh1 {[%clk
0:00:09.3]} 58... Rg2 {[%clk 0:00:04.8]} 59. c5 {[%clk 0:00:09.7]} 59... Rb2+
{[%clk 0:00:05.3]} 60. Kc4 {[%clk 0:00:09.8]} 60... Rc2+ {[%clk 0:00:05.5]} 61.
Kb4 {[%clk 0:00:08.5]} 61... bxc5+ {[%clk 0:00:05.3]} 62. Kb3 {[%clk 0:00:08.9]}
62... Rd2 {[%clk 0:00:05.3]} 63. Kc4 {[%clk 0:00:09.3]} 63... Kg4 {[%clk
0:00:05.5]} 64. Kxc5 {[%clk 0:00:09.3]} 64... Kg3 {[%clk 0:00:05.8]} 65. b6
{[%clk 0:00:09.7]} 65... Kg2 {[%clk 0:00:06.2]} 66. Rxh2+ {[%clk 0:00:10]} 66...
Kxh2 {[%clk 0:00:06.1]} 67. Kc6 {[%clk 0:00:10.5]} 67... Rb2 {[%clk 0:00:06.6]}
68. b7 {[%clk 0:00:10.6]} 68... Rxb7 {[%clk 0:00:07.1]} 69. Kxb7 {[%clk
0:00:10.9]} 1/2-1/2

[Event "Early-Titled-Tuesday-Blitz-January-23-2024"]
[Site "Chess.com"]
[Date "2024.01.23"]
[Round "3"]
[White "snowlord"]
[Black "1mbl4"]
[Result "1-0"]
[WhiteElo "2871"]
[BlackElo "2566"]
[TimeControl "180+1"]
[EndTime "8:28:51 PST"]
[Termination "snowlord won by resignation"]

1. Nf3 {[%clk 0:02:47.1]} 1... Nf6 {[%clk 0:02:58.9]} 2. g3 {[%clk 0:02:45.5]}
2... g6 {[%clk 0:02:58.8]} 3. c4 {[%clk 0:02:41.8]} 3... Bg7 {[%clk 0:02:58.9]}
4. Nc3 {[%clk 0:02:40.7]} 4... O-O {[%clk 0:02:59.2]} 5. Bg2 {[%clk 0:02:35.7]}
5... d6 {[%clk 0:02:59]} 6. O-O {[%clk 0:02:35]} 6... e5 {[%clk 0:02:59.1]} 7.
d3 {[%clk 0:02:35.6]} 7... Re8 {[%clk 0:02:55.4]} 8. Qc2 {[%clk 0:02:29.5]} 8...
Nc6 {[%clk 0:02:52.3]} 9. Rb1 {[%clk 0:02:28.4]} 9... Bg4 {[%clk 0:02:44.6]} 10.
e3 {[%clk 0:02:27.8]} 10... Qc8 {[%clk 0:02:43.2]} 11. Re1 {[%clk 0:02:25.3]}
11... Bh3 {[%clk 0:02:41.2]} 12. Bh1 {[%clk 0:02:25.2]} 12... h6 {[%clk
0:02:38.9]} 13. b4 {[%clk 0:02:23.8]} 13... Ne7 {[%clk 0:02:37]} 14. c5 {[%clk
0:02:19.5]} 14... Qd7 {[%clk 0:02:31]} 15. Bb2 {[%clk 0:02:10.6]} 15... Nf5
{[%clk 0:02:26.6]} 16. Qa4 {[%clk 0:02:05.9]} 16... Qxa4 {[%clk 0:02:14.5]} 17.
Nxa4 {[%clk 0:02:05.5]} 17... Rad8 {[%clk 0:02:15]} 18. cxd6 {[%clk 0:02:04.7]}
18... cxd6 {[%clk 0:02:14.3]} 19. Rbc1 {[%clk 0:01:58.1]} 19... Rc8 {[%clk
0:02:14.2]} 20. Nd2 {[%clk 0:01:58]} 20... d5 {[%clk 0:02:01]} 21. Nc5 {[%clk
0:01:38.3]} 21... b6 {[%clk 0:01:55.1]} 22. Na6 {[%clk 0:01:38.6]} 22... e4
{[%clk 0:01:49.2]} 23. Bxf6 {[%clk 0:01:34.1]} 23... Bxf6 {[%clk 0:01:48.5]} 24.
dxe4 {[%clk 0:01:34.5]} 24... dxe4 {[%clk 0:01:39.4]} 25. Nxe4 {[%clk
0:01:34.6]} 25... Bb2 {[%clk 0:01:34.8]} 26. Rb1 {[%clk 0:01:21.3]} 26... Rc2
{[%clk 0:01:34]} 27. b5 {[%clk 0:00:55.2]} 27... Bg7 {[%clk 0:00:40.6]} 28. Nb4
{[%clk 0:00:54.5]} 28... Rc4 {[%clk 0:00:40.3]} 29. Nd2 {[%clk 0:00:48.3]} 29...
Rc5 {[%clk 0:00:36.1]} 30. Nc6 {[%clk 0:00:43.6]} 30... a5 {[%clk 0:00:33.1]}
31. bxa6 {[%clk 0:00:40]} 31... Bc3 {[%clk 0:00:32.2]} 32. Red1 {[%clk
0:00:38.5]} 32... Nxe3 {[%clk 0:00:27.4]} 33. fxe3 {[%clk 0:00:38.2]} 33... Rxe3
{[%clk 0:00:27.9]} 34. a7 {[%clk 0:00:23.5]} 34... Re8 {[%clk 0:00:26.9]} 35.
Bg2 {[%clk 0:00:20.9]} 35... Bxg2 {[%clk 0:00:22.1]} 36. Kxg2 {[%clk 0:00:21.8]}
36... Rxc6 {[%clk 0:00:22.3]} 37. Rdc1 {[%clk 0:00:21.7]} 37... Ra8 {[%clk
0:00:16.5]} 38. Ne4 {[%clk 0:00:21.1]} 38... Rxa7 {[%clk 0:00:15.5]} 39. Nxc3
{[%clk 0:00:16.4]} 39... Ra3 {[%clk 0:00:15.1]} 40. Rb3 {[%clk 0:00:14.3]} 40...
Ra5 {[%clk 0:00:15.2]} 41. Rcb1 {[%clk 0:00:11.2]} 41... Kg7 {[%clk 0:00:13.4]}
42. a3 {[%clk 0:00:10]} 42... Rac5 {[%clk 0:00:12.7]} 43. Ne2 {[%clk 0:00:09.4]}
43... Rc2 {[%clk 0:00:12.8]} 44. R1b2 {[%clk 0:00:10.2]} 44... g5 {[%clk
0:00:11.5]} 45. g4 {[%clk 0:00:08]} 45... R6c4 {[%clk 0:00:09.1]} 46. h3 {[%clk
0:00:08]} 46... Rxb2 {[%clk 0:00:08.3]} 47. Rxb2 {[%clk 0:00:08.1]} 47... Ra4
{[%clk 0:00:09.2]} 48. Rb3 {[%clk 0:00:08.2]} 48... b5 {[%clk 0:00:08.4]} 49.
Nc3 {[%clk 0:00:08.5]} 49... Rc4 {[%clk 0:00:08.6]} 50. Nxb5 {[%clk 0:00:08.9]}
50... Rc2+ {[%clk 0:00:08.9]} 51. Kg3 {[%clk 0:00:09.5]} 51... Kg6 {[%clk
0:00:09.4]} 52. a4 {[%clk 0:00:10]} 52... h5 {[%clk 0:00:09.5]} 53. gxh5+ {[%clk
0:00:08.7]} 53... Kxh5 {[%clk 0:00:09.8]} 54. Ra3 {[%clk 0:00:09.4]} 54... f5
{[%clk 0:00:09.9]} 55. a5 {[%clk 0:00:09.6]} 55... f4+ {[%clk 0:00:09.4]} 56.
Kf3 {[%clk 0:00:10.2]} 56... Rh2 {[%clk 0:00:10]} 57. Ke4 {[%clk 0:00:10.8]}
57... Re2+ {[%clk 0:00:10]} 58. Kf5 {[%clk 0:00:09]} 58... Rb2 {[%clk 0:00:10]}
59. Nd4 {[%clk 0:00:08.7]} 59... Rb4 {[%clk 0:00:09.4]} 60. a6 {[%clk
0:00:06.3]} 60... Rb3 {[%clk 0:00:04.8]} 61. Nxb3 {[%clk 0:00:05.7]} 1-0